[Event "10th Iberoamericano-ch 2024"]
[Site "Linares"]
[Date "2024.09.25"]
[Round "1.5"]
[White "Iturrizaga Bonelli, Eduardo"]
[Black "Goncalves, Samuel Jesus P"]
[Result "1/2-1/2"]
[ECO "D90"]
[WhiteElo "2577"]
[BlackElo "2169"]
[Annotator "TA"]
[PlyCount "23"]
[EventDate "2024.09.25"]
[EventType "swiss"]
[EventCountry "ESP"]
[SourceTitle "playchess.com"]
[Source "ChessBase"]
[SourceQuality "1"]
[TimeControl "5400+30"]

{[%evp 9,23,-4,0,-3,-10,-22,-5,-37,-41,-97,-90,-101,-61,-65,-52,-69]} 1. d4 {[%emt 0:06:34]} Nf6 {[%emt 0:00:53]} 2. c4 {[%emt 0:00:44]} g6 {[%emt 0:00:09]} 3. Nc3 {[%emt 0:00:06]} d5 {[%emt 0:00:06]} 4. Nf3 {[%emt 0:02:46]} Bg7 {[%emt 0:00:11]} 5. h4 {[%emt 0:00:39]} dxc4 {[%emt 0:02:49][%cal Oc7c5]} 6. e4 {[%emt 0:00:58][%cal Be2e4,Be4e5][%mdl 32] [#]} c5 $1 {[%emt 0:00:14]} 7. d5 {[%emt 0:01:22] [#]} (7. Bxc4 cxd4) 7... b5 $1 {[%emt 0:00:08] Inhibits Qa4.} 8. e5 {[%emt 0:02:09] The position is equal.} ({Don't play} 8. Nxb5 Qa5+ 9. Nc3 Nxe4 $15) (8. h5 $5 O-O 9. h6 $11 (9. Nxb5 Qa5+ 10. Nc3 Nxe4 $17)) (8. h5 O-O) 8... Ng4 {[%emt 0:00:10]} 9. Bf4 {[%emt 0:00:05]} (9. Nxb5 $15 Nd7 10. Bxc4) 9... O-O $17 {[%emt 0:09:09]} 10. Nxb5 {[%emt 0:04:25]} Nd7 {[%emt 0:02:10]} 11. Bxc4 {[%emt 0:15:51]} Ndxe5 {[%emt 0:17:01]} 12. Nxe5 {[%emt 0:10:55] Weighted Error Value: White=0.17 (very precise) /Black=0.07 (flawless) .  Mistake:       	White=1     	---        Inaccurate:     	White=1     	Black=1      OK:         	White=2     	Black=5} 1/2-1/2

[Event "10th Iberoamericano-ch 2024"]
[Site "Linares"]
[Date "2024.09.25"]
[Round "1.6"]
[White "Santos Flores, Alberto"]
[Black "Fier, Alexandr"]
[Result "1-0"]
[ECO "E11"]
[WhiteElo "2168"]
[BlackElo "2551"]
[Annotator "TA"]
[PlyCount "135"]
[EventDate "2024.09.25"]
[EventType "swiss"]
[EventCountry "ESP"]
[SourceTitle "playchess.com"]
[Source "ChessBase"]
[SourceQuality "1"]
[TimeControl "5400+30"]

{[%evp 10,135,51,43,76,40,28,0,0,0,25,-15,37,47,46,22,35,13,38,29,50,0,17,12,24,9,19,0,13,-35,-61,-36,0,-20,-24,-13,16,20,23,0,65,6,0,0,97,0,108,89,90,65,86,61,163,163,177,158,268,260,273,273,308,283,313,298,393,400,443,391,444,405,390,352,455,429,446,270,459,397,479,463,548,540,547,531,539,533,541,514,522,522,508,489,547,564,606,495,772,577,583,534,434,400,462,438,462,462,462,421,667,664,667,657,872,898,1590,1590,1453,1457,29977,29978,29978,29979,29978,29980,29983,29982,29984,6318]} 1. d4 {[%emt 0:00:04]} Nf6 {[%emt 0:00:59]} 2. c4 {[%emt 0:00:07]} e6 {[%emt 0:00:33]} 3. Nf3 {[%emt 0:00:07]} Bb4+ {[%emt 0:00:04]} 4. Bd2 {[%emt 0:00:11]} Qe7 {[%emt 0:00:22]} 5. g3 {[%emt 0:02:09]} Bxd2+ {[%emt 0:00:08]} 6. Qxd2 {[%emt 0:02:38]} Nc6 {[%emt 0:00:10] E11: Bogo-Indisch.} 7. Nc3 {[%emt 0:00:56] Onnauwkeurig} d5 {[%emt 0:00:05] OK} 8. e3 {[%emt 0:05:02] Onnauwkeurig} dxc4 {[%emt 0:00:54] OK. De stelling is in evenwicht.} 9. Bxc4 {[%emt 0:00:16]} O-O {[%emt 0:00:05] OK} 10. O-O {[%emt 0:02:40] Onnauwkeurig} b6 $146 {[%emt 0:00:15] Fout (0.5)} (10... e5 $11) ({Predecessor:} 10... e5 11. Nxe5 Nxe5 12. dxe5 Qxe5 13. Rad1 Bh3 14. Rfe1 c6 15. Bf1 Bxf1 16. Kxf1 Qc7 {½-½ Tudor,V (2339)-Sutkalenko,D (2292) EU-ch 2018 sf02 email}) 11. Rfd1 $14 {[%emt 0:01:44] OK} Bb7 {[%emt 0:00:09] OK} 12. Bf1 {[%emt 0:01:42]} Rfd8 {[%emt 0:00:41][%cal Oc6d4]} 13. Bg2 {[%emt 0:02:12]} Nb4 {[%emt 0:09:33] Stopt e4. OK} 14. a3 {[%emt 0:04:28] Remt c5. OK} Nbd5 {[%emt 0:00:12] OK} 15. Nxd5 {[%emt 0:07:42] Onnauwkeurig} Bxd5 {[%emt 0:01:06]} 16. Qe2 {[%emt 0:09:39] OK} c5 {[%emt 0:02:52]} 17. dxc5 {[%emt 0:00:13] OK} bxc5 {[%emt 0:00:03]} 18. Ne5 {[%emt 0:08:55]} Qb7 {[%emt 0:02:16] OK} 19. Bxd5 {[%emt 0:00:05] kan beter zijn. Fout (0.5)} (19. f3 $11) 19... exd5 $15 {[%emt 0:00:04]} 20. b4 {[%emt 0:09:21] OK} Re8 {[%emt 0:04:37] Onnauwkeurig} ({Speel niet} 20... cxb4 21. axb4 Rd6 22. Rd4 $14) 21. Nd3 {[%emt 0:01:55]} c4 {[%emt 0:00:09] OK} 22. Nf4 {[%emt 0:00:02] OK} Re4 {[%emt 0:05:04] Onnauwkeurig} 23. Qf3 {[%emt 0:01:02][%cal Of4d5] En nu zou Nxd5! winnen. OK} Rae8 {[%emt 0:00:55] OK} 24. Ne2 {[%emt 0:01:09] OK} Ng4 {[%emt 0:02:45] blijft gelijk. Fout (0.7)} (24... R4e5 $11) {Wit zou moeten proberen} 25. Nf4 {[%emt 0:13:13] Fout (0.6)} (25. Nc3 $14 Ne5 26. Qg2) 25... Nf6 $1 $11 {[%emt 0:01:47] Sterk} 26. Ne2 {[%emt 0:00:23]} Nd7 {[%emt 0:00:04] Fout (1.0)} (26... R4e5 $11) 27. Nf4 {[%emt 0:00:43] Fout (1.0)} (27. Nc3 $16) 27... Nb6 {[%emt 0:02:27] Houdt de partij in balans. Fout (1.1)} (27... Nf6 $1 $11) 28. Ra2 $16 {[%emt 0:01:48] Zwart is aan het verliezen. OK} Qa8 {[%emt 0:02:25][%cal Od5d4]} 29. Kg2 {[%emt 0:01:04] Wit is actiever.} h6 {[%emt 0:03:23]} 30. Rad2 {[%emt 0:00:32][%cal Rf4d5]} {Beter is} c3 {[%emt 0:00:04] Fout (1.0)} (30... Qc6 $1 $14) 31. Rc2 $18 {[%emt 0:01:04] Beste (Gemakkelijk)} Rc8 {[%emt 0:01:40] [#]} 32. Rd3 $1 {[%emt 0:02:16] OK} Rcc4 {[%emt 0:01:56] was nodig. Fout (1.1)} (32... Rec4 $16) 33. Rcxc3 {[%emt 0:02:13] OK} (33. Rdxc3 g6 34. b5 Qb7 $16) 33... Rxc3 {[%emt 0:03:42]} 34. Rxc3 {[%emt 0:00:01]} Nc4 {[%emt 0:00:05] Sterke dreiging met ...Ne5. OK} 35. Qd1 {[%emt 0:03:08] OK} Nb6 {[%emt 0:03:27] met als doel voor ...d4. OK} 36. Kg1 {[%emt 0:00:36] OK} Rc4 {[%emt 0:00:03] [#] Onnauwkeurig} 37. Nxd5 {[%emt 0:01:16] OK} Rxc3 {[%emt 0:00:06]} (37... Qd8 38. Rd3) 38. Nxc3 {[%emt 0:00:02][%mdl 4096] Eindspel. KQN-KQN} Qc6 {[%emt 0:00:04]} 39. Qd8+ {[%emt 0:00:38]} Kh7 {[%emt 0:00:02] Beste} 40. Qd3+ {[%emt 0:00:05] OK} Kg8 {[%emt 0:00:02]} 41. b5 {[%emt 0:00:40] OK} Qc5 {[%emt 0:02:21]} 42. Qd8+ {[%emt 0:00:01] Onnauwkeurig} Kh7 $2 {[%emt 0:00:06] Uitkomst kan gunstiger zijn. Fout (1.9)} (42... Qf8 43. Qxf8+ Kxf8) 43. Qd3+ {[%emt 0:00:01] Beste} Kg8 {[%emt 0:00:12]} 44. a4 {[%emt 0:00:14] OK} Qa3 {[%emt 0:00:16]} 45. Qd8+ {[%emt 0:00:04] OK} Kh7 {[%emt 0:00:03] OK} 46. Qd3+ {[%emt 0:00:02] OK} Kg8 {[%emt 0:00:06]} 47. Qd4 {[%emt 0:01:45]} Kh7 {[%emt 0:00:03]} 48. Qe4+ {[%emt 0:00:13]} Kg8 {[%emt 0:00:05] OK} 49. Qd4 {[%emt 0:00:00] OK} Kh7 {[%emt 0:00:07] OK} 50. Kg2 {[%emt 0:00:23]} Kg8 {[%emt 0:00:03]} 51. h4 {[%emt 0:00:12] OK} Kh7 {[%emt 0:00:03]} 52. e4 {[%emt 0:01:32]} Kg8 {[%emt 0:00:04] Fout (2.8)} (52... Qb3 $142 53. h5 Nxa4) 53. Nd5 {[%emt 0:03:43]} Qxa4 {[%emt 0:02:27] OK} 54. Ne7+ {[%emt 0:01:50]} Kh7 {[%emt 0:00:03] Beste} 55. Qxa4 {[%emt 0:02:51] OK} Nxa4 {[%emt 0:00:04] KN-KN} 56. Nc6 {[%emt 0:00:03]} Nc3 {[%emt 0:00:13]} 57. Nxa7 {[%emt 0:00:15] b6 is de sterke dreiging. OK} Nxe4 {[%emt 0:00:03] OK} 58. b6 {[%emt 0:00:27]} Nd6 {[%emt 0:00:10] [#] Remt b7. Fout (2.5)} (58... Nc5 $142 59. Kf3 Kg6) 59. Nb5 $1 {[%emt 0:00:23] OK} Nb7 {[%emt 0:00:02] OK} 60. Kf3 {[%emt 0:00:39]} g5 {[%emt 0:00:41]} 61. hxg5 {[%emt 0:01:05]} hxg5 {[%emt 0:00:09]} 62. Ke4 {[%emt 0:00:12]} Kg6 {[%emt 0:00:03]} 63. Kd5 {[%emt 0:00:40]} f5 {[%emt 0:00:23]} 64. Nd6 {[%emt 0:00:07] Wit zet mat.} Na5 {[%emt 0:00:17]} 65. b7 {[%emt 0:00:07]} Nxb7 {[%emt 0:00:03]} 66. Nxb7 {[%emt 0:00:02]} Kh5 {[%emt 0:00:05]} 67. Ke5 {[%emt 0:00:49]} Kg4 {[%emt 0:00:05]} 68. Nd6 {[%emt 0:00:03] Blunder waarde: Wit=0.18 (erg precies) /Zwart=0.36.  Fout:        	Wit=3      	Zwart=9      Onnauwkeurig:    	Wit=5      	Zwart=3      OK:         	Wit=24     	Zwart=17     Beste:        	Wit=2      	Zwart=2      Sterk:        	---       	Zwart=1} (68. f4 $142 Kxg3 69. fxg5 (69. Kxf5 gxf4 70. Nd6 f3 $11) 69... f4 70. g6 f3 71. Nd6 (71. g7 f2 $18) 71... Kh2 72. Ne4 Kg2 73. g7) 1-0

[Event "10th Iberoamericano-ch 2024"]
[Site "Linares"]
[Date "2024.09.25"]
[Round "1.7"]
[White "Avila Pavas, Santiago"]
[Black "Yanston, Kseniia"]
[Result "1-0"]
[ECO "D00"]
[WhiteElo "2485"]
[BlackElo "1592"]
[Annotator "RC"]
[PlyCount "39"]
[EventDate "2024.09.25"]
[EventType "swiss"]
[EventCountry "ESP"]
[SourceTitle "playchess.com"]
[Source "ChessBase"]
[SourceQuality "1"]
[TimeControl "5400+30"]

1. d4 {[%emt 0:00:08]} d5 {[%emt 0:00:12]} 2. Bf4 {[%emt 0:00:18]} Nf6 {[%emt 0:00:12]} 3. e3 {[%emt 0:00:07]} c5 {[%emt 0:00:27]} 4. c3 {[%emt 0:00:58]} Nc6 {[%emt 0:00:28]} 5. Nd2 {[%emt 0:00:06]} Bf5 {[%emt 0:00:24]} 6. Qb3 {[%emt 0:01:25]} Qd7 {[%emt 0:08:31]} 7. Ngf3 {[%emt 0:00:23]} a6 {[%emt 0:07:13]} 8. dxc5 {[%emt 0:11:06]} e6 {[%emt 0:02:32]} 9. Nd4 {[%emt 0:03:13]} Bg6 {[%emt 0:08:02]} 10. Qa3 {[%emt 0:04:08]} e5 {[%emt 0:18:39]} 11. Nxc6 {[%emt 0:00:21]} exf4 {[%emt 0:00:54]} 12. Ne5 {[%emt 0:00:55]} Qc8 {[%emt 0:12:58]} 13. Qa4+ {[%emt 0:01:56]} Nd7 {[%emt 0:08:14]} 14. Nb3 {[%emt 0:04:09]} fxe3 {[%emt 0:03:43]} 15. O-O-O {[%emt 0:00:23]} Bf5 {[%emt 0:08:22]} 16. Rxd5 {[%emt 0:02:23]} Be6 {[%emt 0:04:13]} 17. Bc4 {[%emt 0:00:36]} exf2 {[%emt 0:04:46]} 18. Rhd1 {[%emt 0:05:47]} Bxd5 {[%emt 0:05:04]} 19. Bxd5 {[%emt 0:00:06]} f6 {[%emt 0:00:50]} 20. Bf7+ {[%emt 0:00:09]} 1-0

[Event "10th Iberoamericano-ch 2024"]
[Site "Linares"]
[Date "2024.09.25"]
[Round "1.8"]
[White "Rodriguez Lopez, Rafael"]
[Black "Salinas Herrera, Pablo"]
[Result "0-1"]
[ECO "C79"]
[WhiteElo "2162"]
[BlackElo "2479"]
[Annotator "TA"]
[PlyCount "96"]
[EventDate "2024.09.25"]
[EventType "swiss"]
[EventCountry "ESP"]
[SourceTitle "playchess.com"]
[Source "ChessBase"]
[SourceQuality "1"]
[TimeControl "5400+30"]

{[%evp 10,96,47,29,50,12,32,-8,0,-10,-9,0,0,0,0,-13,-1,-18,0,0,0,-25,11,8,11,15,114,0,0,0,0,0,0,-14,-18,-74,-47,-74,-79,-77,-85,-75,-76,-88,-88,-97,-64,-53,-64,-56,-49,-50,-64,-53,0,-72,0,-118,-129,-119,-101,-125,-79,-191,-203,-243,-267,-241,-237,-334,-340,-363,-345,-492,-479,-497,-428,-453,-443,-795,-807,-784,-761,-1622,-1700,-29979,-29980,-29980,-29981]} 1. e4 {[%emt 0:00:13]} e5 {[%emt 0:00:09]} 2. Nf3 {[%emt 0:00:09]} Nc6 {[%emt 0:00:06]} 3. Bb5 {[%emt 0:00:07]} a6 {[%emt 0:00:08]} 4. Ba4 {[%emt 0:00:06]} Nf6 {[%emt 0:00:11]} 5. O-O {[%emt 0:00:09]} d6 {[%emt 0:00:49]} 6. Re1 {[%emt 0:01:34]} Bd7 {[%emt 0:00:35]} 7. c4 {[%emt 0:00:23]} Be7 {[%emt 0:02:17]} 8. d4 {[%emt 0:00:09]} Nxd4 {[%emt 0:01:29] The position is equal.} 9. Bxd7+ {[%emt 0:00:11]} Nxd7 {[%emt 0:00:06]} 10. Nxd4 {[%emt 0:00:05]} exd4 {[%emt 0:00:05]} 11. Qxd4 {[%emt 0:00:05]} Bf6 {[%emt 0:00:40]} 12. Qd3 {[%emt 0:02:00]} O-O {[%emt 0:01:33]} 13. Nc3 {[%emt 0:00:23]} Ne5 {[%emt 0:05:10]} 14. Qe2 {[%emt 0:00:20]} c6 {[%emt 0:00:05]} 15. a4 {[%emt 0:04:25]} a5 {[%emt 0:17:20]} 16. Be3 {[%emt 0:00:56] Prevents Qb6.} Qe7 {[%emt 0:00:34]} 17. Rad1 {[%emt 0:01:10][%cal Oc4c5]} Rfd8 {[%emt 0:00:33]} (17... Qe6 $11) 18. Bd4 {[%emt 0:00:30]} (18. c5 $1 $16) 18... Nd7 $11 {[%emt 0:04:09][%cal Be5d7,Bd7c5,Bc5b3][%mdl 32]} 19. Bxf6 {[%emt 0:01:08]} Qxf6 {[%emt 0:00:05]} 20. h3 {[%emt 0:03:00]} Qe6 {[%emt 0:03:10]} 21. Rd4 {[%emt 0:03:30]} Nc5 {[%emt 0:09:35]} 22. Qg4 {[%emt 0:02:31]} (22. Qc2 $11) 22... Nb3 {[%emt 0:01:06]} 23. Qxe6 {[%emt 0:00:28]} fxe6 {[%emt 0:00:06]} 24. Rd3 {[%emt 0:00:18]} Nc5 {[%emt 0:02:54]} 25. Rd2 {[%emt 0:00:16]} Kf7 {[%emt 0:00:05]} 26. Red1 {[%emt 0:01:33][%cal Oe4e5]} Ke7 {[%emt 0:00:23]} 27. f4 {[%emt 0:01:44]} Ra6 {[%emt 0:00:48]} 28. e5 {[%emt 0:01:52]} d5 {[%emt 0:00:05]} 29. cxd5 {[%emt 0:00:12]} exd5 {[%emt 0:00:04]} 30. f5 {[%emt 0:03:11]} Rb6 {[%emt 0:00:23]} 31. Rc2 $1 {[%emt 0:00:33][%cal Oc3d5] Hoping for Nxd5+!} Nd7 {[%emt 0:00:15]} ({Black should try} 31... Kf8 $15) 32. Re2 {[%emt 0:15:17]} (32. g4 $11) 32... Rb4 {[%emt 0:01:38]} (32... Rg8 $17) 33. Rf1 {[%emt 0:04:56]} (33. Rxd5 $11 {keeps the balance.} cxd5 34. Nxd5+ Ke8 35. Nc7+ Ke7 (35... Kf7 36. e6+ Kg8 37. e7 $11) 36. Nd5+ Ke8 37. Nc7+ Ke7 (37... Kf7 38. e6+ Kg8 39. e7 $14) 38. Nd5+) 33... Re8 $17 {[%emt 0:02:12] Black converts the advantage convincingly.} 34. g4 {[%emt 0:03:59]} h6 {[%emt 0:00:07]} 35. Kg2 {[%emt 0:02:38]} Kf8 {[%emt 0:00:14]} ({Better is} 35... d4 36. Ne4 d3 (36... Nxe5 37. f6+ gxf6 38. Nxf6 $18) (36... Rxa4 37. Nd6 $11)) 36. Rfe1 {[%emt 0:01:52] [#]} (36. e6 $17 {was the only defense.} Nc5 37. Kg3) 36... Nc5 $1 $19 {[%emt 0:00:06][%cal Oc5d3] Strongly threatening ...Nd3!} 37. e6 {[%emt 0:01:14] [#]} Nd3 $1 {[%emt 0:00:14]} (37... Nxa4 38. Nxa4 Rxa4 39. Kg3) 38. Rf1 {[%emt 0:01:03]} Nf4+ {[%emt 0:00:04]} (38... Rxb2 39. Rxb2 Nxb2 40. Rb1 $16) ({And not} 38... Nxb2 39. Na2 Nxa4 (39... Rxa4 $2 {loses.} 40. Rxb2 b5 41. Nc3 $18) 40. Nxb4 axb4 41. f6 $15) 39. Rxf4 {[%emt 0:00:05]} (39. Kg3 {keeps fighting.} Nxe2+ 40. Nxe2) 39... Rxf4 {[%emt 0:00:04][%mdl 4096] Endgame. KRR-KRN} 40. Kg3 {[%emt 0:00:06]} Rb4 {[%emt 0:00:20][%cal Og7g6]} 41. h4 {[%emt 0:00:15]} (41. Kh4 {was called for.} g6 42. fxg6) 41... Ke7 {[%emt 0:00:04][%cal Oh6h5]} 42. g5 {[%emt 0:00:15]} Rf8 {[%emt 0:00:11]} 43. Re5 {[%emt 0:00:42]} Rxb2 {[%emt 0:00:20]} 44. Kg4 {[%emt 0:03:35]} (44. Ne2 $142 hxg5 45. hxg5 Rxe2 46. Rxe2 Rxf5 47. Rb2) 44... hxg5 {[%emt 0:00:05]} 45. hxg5 {[%emt 0:00:09]} Rg2+ {[%emt 0:04:57]} 46. Kh5 {[%emt 0:00:26] [#]} g6+ $1 {[%emt 0:00:07]} 47. Kxg6 {[%emt 0:01:43]} (47. Kh6 Rxf5) 47... Rg8+ {[%emt 0:00:04]} 48. Kh7 {[%emt 0:00:22]} R8xg5 {[%emt 0:00:12] Weighted Error Value: White=0.65/Black=0.17 (very precise) .  Mistake:       	White=8     	Black=4      Inaccurate:     	White=3     	Black=3      OK:         	White=13    	Black=11     Best:        	White=3     	Black=2      Strong:       	White=1     	Black=2} 0-1

[Event "10th Iberoamericano-ch 2024"]
[Site "Linares"]
[Date "2024.09.25"]
[Round "1.9"]
[White "Gines Esteo, Pedro Antonio"]
[Black "Rocha, Maximiliano"]
[Result "1-0"]
[ECO "D31"]
[WhiteElo "2477"]
[BlackElo "2156"]
[Annotator "TA"]
[PlyCount "79"]
[EventDate "2024.09.25"]
[EventType "swiss"]
[EventCountry "ESP"]
[SourceTitle "playchess.com"]
[Source "ChessBase"]
[SourceQuality "1"]
[TimeControl "5400+30"]

{[%evp 9,79,31,32,35,41,23,41,25,37,45,56,51,43,49,48,14,9,0,0,0,4,0,0,-19,74,49,63,72,77,84,83,54,100,80,110,124,177,164,193,157,167,180,137,86,90,95,115,112,150,157,146,150,256,239,231,238,237,260,247,197,220,214,259,239,624,597,641,606,1218,967,1086,1070]} 1. d4 {[%emt 0:01:13]} d5 {[%emt 0:01:02]} 2. c4 {[%emt 0:00:30]} e6 {[%emt 0:00:07]} 3. Nc3 {[%emt 0:00:56]} h6 {[%emt 0:01:44]} 4. Nf3 {[%emt 0:01:35]} Nf6 {[%emt 0:00:34]} 5. g3 {[%emt 0:13:01]} Nc6 {[%emt 0:06:16]} 6. Bg2 {[%emt 0:02:58]} Bd6 {[%emt 0:01:45]} 7. O-O {[%emt 0:02:28]} O-O {[%emt 0:01:35]} 8. Qd3 {[%emt 0:22:25] White is slightly better.} dxc4 {[%emt 0:04:52]} 9. Qxc4 {[%emt 0:00:11]} e5 {[%emt 0:00:54]} 10. dxe5 {[%emt 0:19:14]} Nxe5 {[%emt 0:02:29]} 11. Nxe5 {[%emt 0:00:06]} Bxe5 {[%emt 0:00:06]} 12. Bf4 {[%emt 0:04:39]} Be6 {[%emt 0:04:39]} 13. Qb5 {[%emt 0:04:04]} Bxf4 {[%emt 0:03:34]} 14. gxf4 {[%emt 0:00:08][%cal Of1d1]} Rb8 {[%emt 0:05:20]} 15. f5 {[%emt 0:09:06]} Bd7 {[%emt 0:00:08]} 16. Qc5 {[%emt 0:01:05][%cal Oe2e4]} Qc8 {[%emt 0:00:16] [#]} (16... b6 $11 17. Qe5 Re8) 17. e4 $1 $16 {[%emt 0:01:04][%cal Oe4e5]} Bc6 {[%emt 0:01:48]} 18. b4 {[%emt 0:01:53][%cal Ob4b5]} Re8 {[%emt 0:14:03]} 19. Rfe1 {[%emt 0:01:10][%cal Ob4b5]} Nd7 {[%emt 0:06:51]} 20. Qe3 {[%emt 0:02:13][%cal Ob4b5] b5! would now be deadly.} b6 {[%emt 0:01:40]} (20... b5 $14) 21. Rac1 {[%emt 0:02:18]} a6 {[%emt 0:03:57]} 22. Qg3 {[%emt 0:01:33]} Qd8 {[%emt 0:04:00]} (22... Kh8 $16 {is a better defense.} 23. Re3 Ne5) 23. f4 {[%emt 0:04:31]} Kh8 {[%emt 0:03:28]} 24. e5 {[%emt 0:02:23] Inhibits Nf6.} Bxg2 {[%emt 0:00:09]} 25. Kxg2 {[%emt 0:00:10]} ({Resist} 25. Qxg2 $6 Qh4 $16) 25... Nf8 {[%emt 0:09:34]} 26. Rcd1 {[%emt 0:01:58] Against Qd7} (26. Rg1 $142) 26... Qc8 {[%emt 0:00:18]} 27. Qh3 {[%emt 0:00:30] White is much more active.} Nh7 {[%emt 0:05:15]} 28. Ne4 {[%emt 0:00:34][%cal Bc3e4,Be4g5,Bg5e4,Be4d6][%mdl 32]} Qb7 {[%emt 0:03:57][%cal Oh7f6]} 29. Qf3 $36 {[%emt 0:00:18][%mdl 2048] White is on the roll.} Rbd8 {[%emt 0:02:30] [#] Wards off Rd7} 30. Ng5 $1 {[%emt 0:00:44]} c6 {[%emt 0:02:08]} (30... Qxf3+ $16 31. Nxf3 Nf8) 31. Ne4 $18 {[%emt 0:00:16] Threatens to win with Nd6.} Qc7 {[%emt 0:05:42]} 32. Nd6 {[%emt 0:00:43]} Rf8 {[%emt 0:00:03]} 33. Re3 {[%emt 0:00:24]} f6 {[%emt 0:00:31]} 34. Red3 {[%emt 0:00:37]} fxe5 {[%emt 0:04:00]} 35. fxe5 {[%emt 0:00:01]} Ng5 {[%emt 0:01:12] Prevents Nf7+} 36. Qg4 {[%emt 0:00:23] h4 is the strong threat.} c5 $2 {[%emt 0:00:24]} (36... Rd7 37. h4 Nh7) 37. h4 {[%emt 0:00:15] White is clearly winning.} Qc6+ {[%emt 0:00:32]} 38. Kh2 {[%emt 0:00:24]} Nf3+ {[%emt 0:00:15]} 39. Qxf3 {[%emt 0:00:26]} Qxf3 {[%emt 0:00:07]} 40. Rxf3 {[%emt 0:00:07] Weighted Error Value: White=0.11 (very precise) /Black=0.38.  Mistake:       	White=1     	Black=5      Inaccurate:     	White=2     	Black=3      OK:         	White=10    	Black=10     Best:        	White=2     	Black=1      Strong:       	White=1     	---} 1-0